bitfinex/quotes_ETHUSD_20260305
["timestamp","ask_amount","ask_price","bid_price","bid_amount"]
[1772705496611,0.002,2127.8,2127.2,0.58813184]
[1772705497999,0.004,2127.8,2127.3,1.76007426]
[1772705498204,0.002,2127.7,2127.3,1.1751986]
[1772705498631,1.82557692,2127.8,2127.3,1.1751986]
[1772705498932,1.82557692,2127.7,2127.2,1.17521788]
[1772705499405,0.002,2127.8,2127.1,1.17526501]
[1772705499406,1.82557692,2127.6,2127.1,1.17526501]
[1772705499923,1.82557692,2127.6,2127.0,4.70134988]
[1772705499924,1.82557692,2127.6,2126.9,5.28327544]
[1772705500299,1.82557692,2127.6,2127.0,0.58161757]
[1772705500538,0.002,2127.6,2127.0,0.58161757]
[1772705501906,0.002,2127.8,2127.2,0.57631845]
[1772705503137,1.82557692,2127.8,2127.1,1.1753091]
[1772705503938,1.82557692,2127.8,2127.0,4.70123642]
[1772705503939,1.82357692,2127.6,2126.9,1.17541962]
[1772705504141,1.82357692,2127.6,2127.0,0.57302205]
[1772705504340,1.82357692,2127.7,2127.0,0.57302205]
[1772705505144,1.82357692,2127.7,2126.9,1.17541962]
[1772705505641,1.82357692,2127.7,2126.9,1.74676875]
[1772705505846,1.82357692,2127.7,2127.0,0.56966599]
[1772705506146,1.82357692,2127.7,2127.1,1.1753091]
[1772705506920,1.82357692,2127.6,2127.1,1.1753091]
[1772705507645,0.002,2127.4,2127.1,1.1753091]
[1772705508217,0.002,2127.6,2127.1,0.56431518]
[1772705508416,1.82557692,2127.6,2127.0,4.70123642]
[1772705508618,1.77770543,2127.6,2127.0,4.70123642]
[1772705509221,1.77770543,2127.6,2127.0,5.31029122]
[1772705512056,1.77770543,2127.6,2127.0,5.30674942]
[1772705513247,1.77770543,2127.6,2127.0,4.70123642]
[1772705513745,1.77770543,2127.6,2127.0,1.17536436]
[1772705513746,1.79174118,2127.5,2127.0,1.17536436]
[1772705514653,1.79174118,2127.5,2126.9,0.001]
[1772705515148,1.79174118,2127.5,2126.9,0.60161504]
[1772705515341,1.79174118,2127.7,2126.9,0.60161504]
[1772705516640,1.79174118,2127.7,2127.0,1.77433358]
[1772705518128,1.002,2127.8,2127.1,0.68906223]
[1772705518460,3.43494655,2128.9,2127.8,0.68906223]
[1772705518461,1.79174118,2128.7,2127.8,0.68906223]
[1772705518666,1.79174118,2128.7,2128.0,1.17481203]
[1772705518830,2.12560146,2128.4,2128.0,1.17481203]
[1772705520054,0.33386028,2128.4,2128.0,1.17481203]
[1772705521158,2.12560146,2128.4,2128.0,1.17481203]
[1772705521357,1.79174118,2128.4,2128.0,1.17481203]
[1772705521533,1.79174118,2128.6,2128.0,2.90176799]
[1772705521729,0.002,2128.2,2128.1,1.72695596]
[1772705521928,1.79174118,2128.8,2128.1,1.72695596]
[1772705522128,1.1743519,2128.9,2128.1,1.72695596]
[1772705522349,0.002,2128.4,2128.1,1.72695596]
[1772705523048,0.002,2128.4,2128.0,1.17481203]
[1772705523427,0.002,2128.4,2128.0,2.90176799]
[1772705523635,1.79174118,2128.3,2127.8,1.17486962]
[1772705523832,1.79174118,2128.3,2127.7,1.1749352]
[1772705524727,1.79174118,2128.3,2127.6,1.22177254]
[1772705525131,1.79174118,2128.1,2127.6,1.22177254]
[1772705525960,1.79174118,2128.1,2127.6,1.1749908]
[1772705526557,1.79174118,2128.1,2127.5,1.17505009]
[1772705526775,1.79174118,2128.1,2127.4,6.42740277]
[1772705526975,1.79174118,2128.1,2127.3,2.24279]
[1772705526976,1.79174118,2128.1,2127.3,1.17615654]
[1772705527177,1.79174118,2127.9,2127.3,1.17615654]
[1772705527472,1.79174118,2127.9,2127.3,0.001]
[1772705528953,1.79174118,2127.8,2127.3,0.001]
[1772705529378,1.17497767,2127.7,2127.3,0.001]
[1772705529548,1.79174118,2127.6,2127.0,0.001]
[1772705530460,1.17497767,2127.7,2127.0,0.001]
[1772705530461,1.17497767,2127.7,2127.0,1.72795596]
[1772705530660,2.96671885,2127.7,2127.0,1.72795596]
[1772705534574,2.96671885,2127.7,2127.1,1.1753091]
[1772705534879,2.96671885,2127.7,2127.1,2.90226506]
[1772705535486,2.96673767,2127.7,2127.1,2.90226506]
[1772705535654,2.96672176,2127.7,2127.1,2.90226506]
[1772705536484,2.96672176,2127.7,2127.2,0.001]
[1772705536858,1.79174118,2127.6,2127.2,0.001]
[1772705539185,3.11113456,2127.8,2127.2,1.8175945]
[1772705540586,3.11105825,2127.9,2127.2,1.8175945]
[1772705540786,1.93616777,2127.8,2127.2,1.8175945]
[1772705541190,1.93616777,2127.7,2127.3,1.1751986]
[1772705541571,1.93616777,2127.7,2127.2,1.17624184]
[1772705541869,1.93616777,2127.7,2127.2,2.99283634]
[1772705544089,3.11120067,2127.6,2127.2,1.8175945]
[1772705544594,3.11120067,2127.6,2127.2,0.001]
[1772705545285,1.93616777,2127.5,2127.2,0.001]
[1772705545960,1.93616777,2127.5,2127.2,1.17625275]
[1772705546164,3.11119159,2127.7,2127.2,1.17625275]
[1772705546794,3.11119159,2127.7,2127.2,0.001]
[1772705549287,3.11119159,2127.7,2127.2,1.17625385]
[1772705550497,3.11119159,2127.7,2127.2,3.127865]
[1772705551392,3.11119159,2127.7,2127.4,0.001]
[1772705551785,0.002,2127.5,2127.4,0.001]
[1772705552377,1.79981836,2127.5,2127.0,1.95261115]
[1772705552589,1.79981836,2127.5,2126.8,0.001]
[1772705552590,1.79781836,2127.4,2126.8,0.001]
[1772705552790,1.79781836,2127.4,2126.7,0.001]
[1772705553400,1.79781836,2127.4,2126.4,0.001]
[1772705553401,1.79781836,2127.0,2126.4,0.001]
[1772705553568,1.79781836,2126.9,2126.4,0.001]
[1772705555395,1.79781836,2126.7,2126.4,0.001]
[1772705557782,2.9734038,2126.6,2126.4,0.001]
[1772705557976,1.79781836,2126.5,2126.2,0.001]
[1772705558378,1.79781836,2126.5,2126.0,0.001]
[1772705559097,1.79781836,2126.4,2126.0,0.001]
[1772705560302,1.1757513,2126.3,2126.0,0.001]
[1772705560905,2.97968962,2126.5,2126.0,1.95261115]
[1772705562312,1.805,2126.8,2126.2,1.95161115]
[1772705562800,1.79781836,2126.7,2126.2,1.95161115]
[1772705562981,1.79781836,2126.7,2126.0,3.12848371]
[1772705563186,1.79781836,2126.7,2126.0,1.95261115]
[1772705563387,1.79781836,2126.7,2126.0,3.12852164]
[1772705563792,1.79781836,2126.7,2126.0,1.95261115]
[1772705564816,1.79781836,2126.5,2126.2,0.001]
[1772705566192,1.79781836,2126.5,2126.0,0.001]
[1772705566397,1.79781836,2126.5,2125.9,0.001]
[1772705566915,1.79781836,2126.3,2125.9,0.001]
[1772705569219,3.09592213,2126.2,2125.9,0.001]
[1772705569715,1.1758066,2126.2,2125.9,0.001]
[1772705569916,3.09592213,2126.2,2125.9,0.001]
[1772705570892,1.92011553,2126.7,2125.9,0.001]
[1772705571211,0.002,2127.2,2125.9,0.001]
[1772705571212,3.72611553,2126.6,2126.1,1.83986889]
[1772705571389,4.90170839,2126.6,2126.1,1.83986889]
[1772705572825,3.09570839,2126.6,2126.1,1.83986889]
[1772705573494,3.09570839,2126.6,2126.1,3.01572023]
[1772705574098,3.09570839,2126.6,2126.1,1.83986889]
[1772705574304,3.09570839,2126.6,2126.1,1.17586163]
[1772705574510,3.09570839,2126.6,2126.2,1.83986889]
[1772705577627,3.09570839,2126.6,2126.2,3.01567362]
[1772705577799,0.001,2126.4,2126.2,3.01567188]
[1772705577996,0.001,2126.4,2126.2,1.83986889]
[1772705580003,0.001,2126.4,2126.2,3.01567497]
[1772705580516,0.001,2126.4,2126.2,1.83986889]
[1772705581527,0.001,2126.4,2126.2,3.01566356]
[1772705581832,0.001,2126.4,2126.2,1.83986889]
[1772705583205,0.001,2126.4,2126.3,1.83986889]
[1772705583398,4.7017464,2126.9,2126.3,1.83986889]
[1772705583603,2.98441962,2126.9,2126.3,1.83986889]
[1772705584005,1.17541962,2126.9,2126.3,1.83986889]
[1772705584207,3.09553515,2126.9,2126.3,1.83986889]
[1772705585136,0.002,2127.2,2126.7,1.83986889]
[1772705585137,1.92211553,2127.2,2126.7,1.83986889]
[1772705585435,0.002,2127.2,2126.7,1.83986889]
[1772705585653,1.92211553,2127.2,2126.7,1.83986889]
[1772705587151,1.92011553,2127.1,2126.7,3.01536511]
[1772705587505,1.92011553,2127.1,2126.7,1.83986889]
[1772705587710,1.92011553,2127.1,2126.7,3.01539345]
[1772705589738,3.09544719,2127.1,2126.7,3.01539345]
[1772705590115,0.002,2127.0,2126.7,3.01539345]
[1772705592622,0.002,2127.0,2126.8,1.83986889]
[1772705594066,0.002,2127.0,2126.9,1.83986889]
[1772705594959,1.92211553,2127.0,2126.7,1.83986889]
[1772705595252,1.92211553,2127.0,2126.5,1.83986889]
[1772705596165,1.92211553,2127.0,2126.7,1.83986889]
[1772705596166,0.002,2127.0,2126.7,1.83986889]
[1772705596325,0.002,2127.2,2126.7,1.83986889]
[1772705596651,3.09737386,2127.2,2126.7,1.83986889]
[1772705598355,3.09737386,2127.2,2126.8,1.83986889]
[1772705598758,3.09737386,2127.2,2126.8,1.33986889]
[1772705601343,3.09737386,2127.2,2126.8,2.51533608]
[1772705602334,0.002,2127.2,2126.9,1.84138965]
[1772705602869,1.17726014,2127.2,2126.9,1.84238965]
[1772705603170,0.002,2127.0,2126.9,1.84238965]
[1772705604883,0.002,2127.2,2126.9,3.01779743]
[1772705605163,6.5136846,2127.4,2126.9,3.01779743]
[1772705605164,0.002,2127.4,2127.0,1.84138965]
[1772705606268,0.002,2127.4,2127.2,1.84138965]
[1772705608242,0.002,2127.4,2127.3,2.94499792]
[1772705608944,0.002,2127.4,2127.3,1.76979932]
[1772705609143,0.002,2127.4,2127.1,2.94506254]
[1772705609350,1.94019908,2127.4,2127.1,2.94506254]
[1772705611374,1.94019908,2127.5,2127.1,2.94506254]
[1772705611869,0.002,2127.5,2127.2,1.76979932]
[1772705612579,0.002,2127.5,2127.2,2.9450517]
[1772705615777,0.002,2127.5,2127.2,1.17525238]
[1772705615980,0.002,2127.5,2127.3,1.76979932]
[1772705616882,0.002,2127.5,2127.3,2.9449591]
[1772705617258,0.002,2127.5,2127.3,1.76979932]
[1772705617461,1.94019908,2127.5,2127.2,1.17524931]
[1772705617782,1.94019908,2127.5,2127.4,0.001]
[1772705618780,3.11528721,2127.5,2127.4,0.001]
[1772705619283,1.94019908,2127.5,2127.4,0.001]
[1772705619859,0.002,2127.5,2127.4,0.001]
[1772705620178,0.002,2127.7,2127.5,1.76979932]
[1772705620356,0.002,2127.8,2127.5,1.76979932]
[1772705620761,0.002,2127.8,2127.5,2.94486973]
[1772705620971,1.94019908,2127.8,2127.4,0.001]
[1772705621887,1.94019908,2127.8,2127.4,1.17614311]
[1772705622078,1.94019908,2127.8,2127.4,2.94594243]
[1772705623191,3.11515951,2127.8,2127.4,2.94594243]
[1772705623576,3.11515951,2127.8,2127.5,1.76979932]
[1772705623577,1.17696043,2127.8,2127.5,1.76979932]
[1772705623756,3.11515951,2127.8,2127.5,1.76979932]
[1772705624574,0.76533221,2127.8,2127.5,1.76979932]
[1772705624992,1.94029264,2127.8,2127.5,1.76979932]
[1772705625493,1.94029264,2127.8,2127.4,0.001]
[1772705626387,1.94029264,2127.8,2127.4,1.77079932]
[1772705626574,4.69955451,2127.9,2127.5,1.76979932]
[1772705626575,2.98590633,2127.9,2127.5,1.76979932]
[1772705626978,0.90559582,2127.8,2127.5,1.76979932]
[1772705627302,0.90559582,2127.8,2127.4,0.001]
[1772705627474,1.17497767,2127.7,2127.4,0.001]
[1772705627674,2.08055436,2127.8,2127.4,0.001]
[1772705628301,0.90665689,2127.7,2127.4,0.001]
[1772705630388,0.002,2127.6,2127.4,0.001]
[1772705631084,0.91478088,2127.6,2127.4,0.001]
[1772705631766,0.002,2127.6,2127.4,0.001]
[1772705633698,2.0886769,2127.7,2127.4,1.83889442]
[1772705636823,2.0886769,2127.7,2127.4,0.001]
[1772705637677,2.0886769,2127.7,2127.4,1.83889442]
[1772705638522,0.002,2127.8,2127.5,1.83789442]
[1772705638678,1.002,2128.0,2127.5,1.83789442]
[1772705638873,2.17681203,2128.0,2127.5,1.83789442]
[1772705640679,1.002,2128.0,2127.7,1.83789442]
[1772705641282,2.17682133,2128.0,2127.7,1.83789442]
[1772705642819,1.002,2128.0,2127.7,3.01287072]
[1772705643183,1.92379687,2128.4,2127.7,1.1749763]
[1772705643490,1.92379687,2128.4,2127.8,1.83789442]
[1772705643491,1.17466787,2128.3,2127.8,1.83789442]
[1772705643803,1.17466787,2128.3,2127.6,4.70112295]
[1772705643804,1.92379687,2128.2,2127.6,1.83889442]
[1772705644412,1.9545067,2128.1,2127.6,0.001]
[1772705645208,3.13051719,2128.0,2127.6,1.83889442]
[1772705646082,1.95688298,2128.1,2127.6,1.83889442]
[1772705647491,1.17481203,2128.0,2127.6,1.83889442]
[1772705647691,1.17481203,2128.0,2127.6,1.88589573]
[1772705648388,1.17481203,2128.0,2127.7,1.83789442]
[1772705649318,3.13504816,2128.0,2127.7,1.83789442]
[1772705650816,1.17479734,2128.1,2127.7,3.01286759]
[1772705650987,1.17479734,2128.1,2127.8,1.83789442]
[1772705651595,3.1370993,2128.1,2127.8,1.83789442]
[1772705653319,2.00678821,2128.0,2127.6,1.88589573]
[1772705654703,2.00678821,2128.2,2127.6,1.88589573]
[1772705655299,2.00678821,2128.2,2127.7,1.83789442]
[1772705655705,2.00678821,2128.2,2127.8,0.001]
[1772705656121,0.002,2128.0,2127.8,0.001]
[1772705656420,0.002,2128.0,2127.8,1.83889442]
[1772705656920,1.17681203,2128.0,2127.8,1.83889442]
[1772705657508,1.17681203,2128.0,2127.8,0.001]
[1772705658202,3.18360024,2128.0,2127.8,0.001]
[1772705659797,0.002,2128.0,2127.8,1.925926]
[1772705659999,3.06524306,2128.2,2127.9,1.924926]
[1772705661999,1.17670592,2128.2,2127.9,1.924926]
[1772705664034,3.06524306,2128.2,2127.9,1.924926]
[1772705666031,1.88853714,2128.1,2127.8,0.001]
[1772705666515,1.88853714,2128.1,2127.6,3.811]
[1772705666516,1.88853714,2128.0,2127.6,3.811]
[1772705667102,1.88853714,2128.0,2127.6,5.735926]
[1772705667314,1.88853714,2128.0,2127.6,1.925926]
[1772705668113,3.06339651,2128.0,2127.6,3.10094622]
[1772705668317,1.17485937,2128.0,2127.7,2.0562755]
[1772705668517,1.17478688,2128.1,2127.7,2.0562755]
[1772705669544,3.23829093,2128.2,2127.7,2.0562755]
[1772705670218,3.23829093,2128.2,2127.8,2.0562755]
[1772705671326,3.23829093,2128.2,2127.9,0.001]
[1772705671915,0.002,2128.1,2127.9,0.001]
[1772705672320,0.002,2128.1,2127.9,2.0572755]
[1772705675619,0.002,2128.1,2128.0,1.17481203]
[1772705675819,3.23613915,2128.5,2128.1,2.0562755]
[1772705676237,2.06155284,2128.4,2128.1,2.0562755]
[1772705677415,3.23617956,2128.4,2128.1,2.0562755]
[1772705680637,2.06155284,2128.4,2128.1,2.0562755]
[1772705680828,3.236146,2128.4,2128.1,2.0562755]
[1772705681811,1.17458542,2128.5,2128.2,2.0562755]
[1772705682618,1.17452669,2128.6,2128.3,2.0562755]
[1772705683223,3.23602032,2128.7,2128.3,2.0562755]
[1772705684318,2.06155284,2128.6,2128.3,2.0562755]
[1772705684845,1.17453605,2128.5,2128.3,2.0562755]
[1772705685339,3.23601615,2128.7,2128.3,2.0562755]
[1772705686449,5.06401615,2128.7,2128.3,2.0562755]
[1772705687344,0.002,2128.4,2128.3,2.0562755]
[1772705688449,0.002,2128.4,2128.2,2.0562755]
[1772705691820,3.12074127,2128.6,2128.2,3.27795722]
[1772705692026,3.12074127,2128.6,2128.2,2.10326356]
[1772705692425,1.94421456,2128.5,2128.0,3.10626817]
[1772705692825,1.94421456,2128.5,2128.1,1.93047756]
[1772705694237,3.11876929,2128.5,2128.1,3.10522244]
[1772705694427,3.12070667,2128.6,2128.2,1.97746562]
[1772705695025,1.17649211,2128.6,2128.2,1.97746562]
[1772705696140,1.17649211,2128.6,2128.2,3.15215104]
[1772705696340,1.17649211,2128.6,2128.3,1.93047756]
[1772705697458,0.002,2128.6,2128.3,3.10512318]
[1772705697654,0.002,2128.6,2128.4,1.93047756]
[1772705698432,0.002,2128.6,2128.2,3.1051537]
[1772705698631,0.002,2128.6,2128.3,1.93047756]
[1772705700247,0.002,2128.6,2128.3,3.1051192]
[1772705700588,1.833,2129.1,2128.4,1.93047756]
[1772705700748,3.00720939,2129.1,2128.4,1.93047756]
[1772705700948,1.94421456,2129.0,2128.4,1.93047756]
[1772705701582,1.94421456,2129.0,2128.2,3.42256916]
[1772705701779,1.94421456,2129.0,2128.5,0.001]
[1772705702085,1.94421456,2129.0,2128.1,2.24791004]
[1772705702086,0.002,2128.4,2128.1,3.10523184]
[1772705702265,1.94421456,2129.0,2128.2,1.93047756]
[1772705702580,1.94421456,2128.8,2128.4,1.93047756]
[1772705702782,0.002,2128.6,2128.4,1.93047756]
[1772705703556,1.94421456,2128.8,2128.4,1.93047756]
[1772705704369,1.1744257,2128.7,2128.4,1.93047756]
[1772705704577,3.11864026,2128.7,2128.4,1.93047756]
[1772705706378,1.1744257,2128.7,2128.4,1.93047756]
[1772705708098,1.94421456,2128.6,2128.3,0.001]
[1772705708274,1.94421456,2128.6,2128.3,1.93147756]
[1772705708594,3.11871809,2128.6,2128.3,1.93147756]
[1772705708959,3.42381055,2129.4,2128.4,1.93047756]
[1772705709156,1.94421456,2129.1,2128.4,1.93047756]
[1772705710701,1.94421456,2128.9,2128.4,1.93047756]
[1772705711978,1.94421456,2128.9,2128.3,0.001]
[1772705712298,1.94421456,2128.9,2128.3,1.93147756]
[1772705712797,1.17437053,2128.8,2128.4,1.93047756]
[1772705713176,3.11858509,2128.8,2128.4,1.93047756]
[1772705714369,1.94421456,2128.7,2128.4,1.93047756]
[1772705715111,3.11865852,2128.7,2128.4,1.93047756]
[1772705715475,3.11865852,2128.7,2128.6,0.001]
[1772705717489,1.17444396,2128.7,2128.6,1.93147756]
[1772705717877,1.17639646,2128.8,2128.6,1.93147756]
[1772705718600,1.94421456,2128.7,2128.6,0.001]
[1772705719379,3.11864026,2128.7,2128.6,0.001]
[1772705719584,2.08733226,2128.6,2128.4,0.001]
[1772705720704,1.838,2128.6,2128.4,0.001]
[1772705720904,2.08733226,2128.5,2128.4,0.001]
[1772705721285,3.26186831,2128.5,2128.4,0.001]
[1772705721887,1.17453605,2128.5,2128.4,1.97091335]
[1772705722093,1.17443002,2128.7,2128.4,1.97091335]
[1772705722487,1.17443002,2128.7,2128.4,0.001]
[1772705722488,3.26176228,2128.7,2128.4,0.001]
[1772705722699,3.26176228,2128.7,2128.3,0.001]
[1772705722700,2.08733226,2128.6,2128.3,0.001]
[1772705723520,1.17453605,2128.5,2128.3,0.001]
[1772705723886,1.1744257,2128.7,2128.3,1.97091335]
[1772705724085,1.17637411,2128.8,2128.5,1.96991335]
[1772705724498,0.002,2128.8,2128.5,1.96991335]
[1772705725131,1.17435472,2128.9,2128.5,1.96991335]
[1772705725288,1.17424687,2129.1,2128.5,1.96991335]
[1772705726412,2.08733226,2129.1,2128.5,1.96991335]
[1772705728429,1.17426021,2129.0,2128.5,1.17449236]
[1772705728631,1.17426021,2129.0,2128.6,2.13054919]
[1772705730395,4.69670755,2129.2,2128.6,2.13054919]
[1772705730621,4.69670755,2129.2,2128.6,2.16164114]
[1772705730921,6.80315997,2129.2,2128.6,2.16164114]
[1772705731783,6.80315997,2129.2,2128.8,0.001]
[1772705731988,6.80315997,2129.2,2128.9,2.16164114]
[1772705732201,1.17414991,2129.2,2128.9,2.16164114]
[1772705732410,4.69658464,2129.3,2128.9,2.16164114]
[1772705732411,1.17413234,2129.3,2128.9,2.16164114]
[1772705733024,0.002,2129.0,2128.9,2.16164114]
[1772705733315,1.17613234,2129.3,2128.9,2.16164114]
[1772705734407,3.28258476,2129.3,2128.9,2.16164114]
[1772705735411,1.17613234,2129.3,2128.9,2.16164114]
[1772705736317,1.17613234,2129.3,2129.0,2.16164114]
[1772705736703,0.002,2129.3,2129.0,2.16164114]
[1772705736899,1.17403963,2129.4,2129.0,2.16164114]
[1772705737306,5.02739656,2129.7,2129.1,2.16164114]
[1772705737307,0.3318812,2129.7,2129.1,2.16164114]
[1772705737531,1.1738411,2129.8,2129.1,2.16164114]
[1772705737730,1.1738411,2129.8,2129.2,2.16164114]
[1772705737914,3.28013335,2130.1,2129.2,2.16164114]
[1772705738804,1.17368093,2130.1,2129.4,2.16164114]
[1772705740138,6.86720706,2130.7,2129.4,2.16164114]
[1772705740139,0.32878354,2130.7,2129.4,2.16164114]
[1772705740337,2.10645242,2130.5,2129.7,2.16164114]
[1772705741038,1.17348854,2130.4,2129.8,2.16164114]
[1772705742313,3.27992894,2130.5,2129.8,2.16164114]
[1772705742514,2.10645242,2130.4,2129.8,2.16164114]
[1772705743033,2.10645242,2130.4,2129.3,2.16164114]
[1772705743034,2.10645242,2130.2,2129.3,2.16164114]
[1772705743531,2.10645242,2130.2,2129.1,2.16164114]
[1772705743732,2.10645242,2130.0,2129.1,2.16164114]
[1772705744236,2.10645242,2130.0,2128.8,0.001]
[1772705744544,3.01854363,2130.3,2128.8,0.001]
[1772705744545,2.10645242,2129.8,2128.8,0.001]
[1772705744717,2.10645242,2129.6,2128.8,0.001]
[1772705744923,2.10645242,2129.4,2128.8,0.001]
[1772705745126,2.10645242,2129.4,2128.8,0.04797482]
[1772705745637,2.10645242,2129.4,2128.8,0.001]
[1772705746026,2.10645242,2129.4,2129.1,0.001]
[1772705746947,1.17409477,2129.3,2129.1,0.001]
[1772705747248,3.28054719,2129.3,2129.1,0.001]
[1772705747734,2.10645242,2129.2,2128.9,0.001]
[1772705748447,3.95245242,2129.2,2128.9,0.001]
[1772705749436,1.17420506,2129.1,2128.9,0.001]
[1772705751714,3.44326381,2129.1,2128.9,0.001]
[1772705752852,3.44326381,2129.1,2128.5,0.001]
[1772705752853,2.26905875,2129.0,2128.5,0.001]
[1772705753637,2.26905875,2128.8,2128.5,0.001]
[1772705755551,1.17431537,2128.9,2128.5,0.001]
[1772705755854,2.26905875,2128.9,2128.5,0.001]
[1772705757918,1.17437053,2128.8,2128.5,0.001]
[1772705758119,1.17437053,2128.8,2128.1,4.98572027]
[1772705758120,2.26905875,2128.7,2128.1,0.001]
[1772705758324,2.35475009,2128.5,2128.1,0.001]
[1772705760052,1.17459124,2128.4,2128.1,0.001]
[1772705760639,3.02349713,2128.6,2128.2,0.07869927]
[1772705760847,3.02349713,2128.6,2128.3,0.12568512]
[1772705761158,1.17449713,2128.6,2128.3,0.12568512]
[1772705761359,1.17449713,2128.6,2128.3,0.07869927]
[1772705761724,3.52924722,2128.6,2128.1,0.08097564]
[1772705761928,3.52924722,2128.6,2128.3,0.001]
[1772705762633,3.52924722,2128.6,2128.1,0.08097564]
[1772705763660,2.35475009,2128.5,2128.1,0.001]
[1772705764261,3.52934133,2128.4,2128.1,0.001]
[1772705766644,3.52934133,2128.4,2127.6,0.001]
[1772705766645,2.35475009,2128.3,2127.6,0.001]
[1772705767267,2.35475009,2128.3,2127.7,0.08686699]
[1772705767562,1.17459124,2128.4,2127.9,0.08686699]
[1772705767761,1.17459124,2128.4,2128.0,0.13497659]
[1772705767959,1.22157503,2128.4,2128.0,0.08798411]
[1772705770135,3.57632512,2128.4,2128.0,0.08798411]
[1772705771268,2.35475009,2128.3,2127.9,0.04699468]
[1772705771468,2.35475009,2128.3,2127.9,0.13779438]
[1772705772464,2.35475009,2128.3,2127.9,0.04699468]
[1772705772635,2.40173388,2128.3,2127.8,0.09168755]
[1772705772834,1.17470162,2128.2,2127.8,1.26659242]
[1772705773067,1.17470162,2128.2,2127.9,0.09251997]
[1772705773647,1.17470162,2128.2,2127.7,1.17493707]
[1772705773854,1.17470162,2128.2,2127.7,1.26745704]
[1772705774177,1.17470162,2128.2,2127.8,0.09331192]
[1772705774969,3.52945171,2128.2,2127.8,0.09331192]
[1772705775336,3.52945171,2128.2,2127.6,4.98599685]
[1772705775337,2.35475009,2128.1,2128.0,0.001]
[1772705776041,1.17470162,2128.2,2128.0,0.001]
[1772705776745,2.35475009,2128.1,2128.0,0.001]
[1772705777044,1.17475682,2128.1,2128.0,0.001]
[1772705778262,3.52950691,2128.1,2128.0,0.001]
[1772705778457,2.35425009,2128.0,2127.7,0.001]
[1772705778659,2.35425009,2128.0,2127.5,0.001]
[1772705778966,2.35425009,2128.0,2127.3,0.001]
[1772705779166,2.35425009,2127.8,2127.3,0.001]
[1772705779369,1.857,2127.7,2127.3,0.10220934]
[1772705779543,1.17486724,2127.9,2127.4,0.04700573]
[1772705779544,1.858,2127.9,2127.4,0.04700573]
[1772705779740,1.858,2127.9,2127.5,0.10120934]
[1772705779940,1.17478703,2128.1,2127.3,0.001]
[1772705779941,3.52896155,2128.2,2127.7,0.10187996]
[1772705780153,5.38696155,2128.2,2127.7,0.10187996]
[1772705780870,0.04698379,2128.1,2127.7,0.10187996]
[1772705781077,2.40123388,2128.1,2127.7,0.10187996]
[1772705781457,2.40123388,2128.1,2127.5,1.27748815]
[1772705781458,1.17481203,2128.0,2127.5,1.27748815]
[1772705781959,2.35425009,2127.9,2127.5,0.10240514]
[1772705783252,1.17481203,2128.0,2127.5,1.27749322]
[1772705783452,1.17481203,2128.0,2127.5,0.10240514]
[1772705783652,3.52906212,2128.0,2127.5,0.10240514]
[1772705783854,2.35425009,2127.9,2127.3,0.001]
[1772705784049,1.17481203,2128.0,2127.3,0.001]
[1772705784050,3.52906212,2128.0,2127.4,0.10377589]
[1772705784370,1.17481203,2128.0,2127.6,0.10377589]
[1772705784977,1.17481203,2128.0,2127.7,0.0469991]
[1772705785180,1.17481203,2128.0,2127.6,0.10377589]
[1772705786276,3.52906212,2128.0,2127.4,1.27966743]
[1772705786462,3.52906212,2128.0,2127.5,0.10452558]
[1772705787767,1.17492245,2127.8,2127.5,0.10452558]
[1772705787963,1.17492245,2127.8,2127.4,1.17514185]
[1772705788365,1.17492245,2127.8,2127.3,1.28440212]
[1772705788954,2.40123388,2127.9,2127.4,0.10848057]
[1772705789179,2.35425009,2127.9,2127.6,0.001]
[1772705789483,3.53112557,2127.9,2127.6,0.001]
[1772705789880,3.57810936,2127.9,2127.6,0.001]
[1772705790084,3.53112557,2127.9,2127.6,0.001]
[1772705790564,0.04698379,2128.0,2127.7,0.10870255]
[1772705792090,1.17680335,2128.1,2127.7,0.10870255]
[1772705792311,2.35425009,2128.0,2127.3,0.001]
[1772705792458,2.41299069,2128.0,2127.3,0.001]
[1772705792659,2.35375009,2127.6,2126.9,0.001]
[1772705792886,2.35375009,2127.4,2126.9,0.001]
[1772705793497,2.35375009,2127.4,2126.6,0.001]
[1772705793666,2.35375009,2127.4,2126.7,0.001]
[1772705793866,2.35375009,2127.4,2126.6,0.001]
[1772705794091,2.35375009,2127.2,2126.6,0.002]
[1772705794792,2.35375009,2127.2,2126.6,0.001]
[1772705796163,2.35375009,2127.0,2126.6,0.001]
[1772705796463,1.1753091,2127.1,2126.6,0.001]
[1772705796464,2.35375009,2126.8,2126.6,0.001]
[1772705796654,2.35375009,2126.8,2126.4,0.001]
[1772705796860,2.35375009,2126.8,2126.4,0.002]
[1772705797862,1.864,2126.9,2126.4,0.002]
[1772705798290,3.52922498,2126.8,2126.4,0.002]
[1772705798488,2.35375009,2126.7,2126.4,0.001]
[1772705798865,3.03946077,2126.9,2126.4,0.001]
[1772705798866,5.39321086,2126.9,2126.4,0.001]
[1772705799065,5.39321086,2126.9,2126.5,0.001]
[1772705799875,2.35375009,2126.8,2126.5,0.001]
[1772705800994,3.52927758,2126.8,2126.5,0.001]
[1772705801894,3.52927758,2126.8,2126.7,0.001]
[1772705802087,2.35375009,2127.0,2126.7,0.001]
[1772705802291,2.7955332,2127.9,2126.7,0.002]
[1772705802292,1.867,2126.9,2126.7,0.002]
[1772705802595,2.35575009,2127.2,2126.7,0.002]
[1772705802596,0.002,2127.2,2126.7,0.14425692]
[1772705802795,2.35425009,2127.8,2127.0,0.13763307]
[1772705803000,0.002,2127.4,2127.1,1.1753091]
[1772705805992,2.35625009,2127.4,2126.8,1.17547489]
[1772705806192,2.41301002,2127.3,2126.7,1.17648854]
[1772705807383,3.58821919,2127.3,2126.7,1.17648854]
[1772705810600,3.58821291,2127.3,2126.7,1.17648854]
[1772705810902,3.58820871,2127.3,2126.7,1.2886841]
[1772705812499,2.35886911,2127.2,2126.7,0.001]
[1772705812683,2.41763456,2127.1,2126.7,0.001]
[1772705813385,5.4030678,2127.3,2126.7,1.27839046]
[1772705813898,2.35886911,2127.3,2126.8,0.09844704]
[1772705814106,3.04616839,2127.4,2126.8,0.09844704]
[1772705814529,0.05875993,2127.3,2126.9,1.17541962]
[1772705815212,5.4050375,2127.4,2126.9,1.17541962]
[1772705815736,5.4050375,2127.4,2126.9,1.17651962]